fUST/lending_fUST_20250925
["ID","MTS","AMOUNT","RATE_DAILY","PERIOD"]
[387501343,1758745848163,-480.0,0.00019726,2]
[387501345,1758745848173,-480.0,0.00019726,2]
[387501347,1758745848183,-900.62,0.00019726,2]
[387501349,1758745848193,-480.0,0.00019726,2]
[387501351,1758745848204,-480.0,0.00019726,2]
[387501353,1758745848214,-480.0,0.00019726,2]
[387501355,1758745848224,-692.17,0.00019726,2]
[387501357,1758745848233,-480.0,0.00019726,2]
[387501359,1758745848243,-480.0,0.00019726,2]
[387501361,1758745848253,-480.0,0.00019726,2]
[387501363,1758745848262,-480.0,0.00019726,2]
[387501365,1758745848272,-480.0,0.00019726,2]
[387501367,1758745848281,-583.87,0.00019726,2]
[387501369,1758745848290,-480.0,0.00019726,2]
[387501371,1758745848299,-440.34,0.00019726,2]
[387501373,1758745848308,-480.0,0.00019726,2]
[387501375,1758745848317,-480.0,0.00019726,2]
[387501377,1758745848326,-480.0,0.00019726,2]
[387501379,1758745848335,-1043.37,0.00019726,2]
[387501381,1758745848344,-498.34,0.00019726,2]
[387501383,1758745848354,-618.88,0.00019726,2]
[387501385,1758745848363,-480.0,0.00019726,2]
[387501387,1758745848373,-1157.98,0.00019726,2]
[387501389,1758745848382,-480.0,0.00019726,2]
[387501391,1758745848392,-480.0,0.00019726,2]
[387501393,1758745848401,-387.81,0.00019726,2]
[387501395,1758745848411,-397.31,0.00019726,2]
[387501397,1758745848420,-413.00618529,0.00019726,2]
[387501399,1758745848430,-500.0,0.00019773,2]
[387501401,1758745848440,-2542.27029708,0.000199,2]
[387501403,1758745848450,-1000.0,0.00019921,2]
[387501405,1758745848460,-1000.0,0.00019921,2]
[387501407,1758745848469,-600.6141563,0.00019921,2]
[387501409,1758745848479,-501.93914469,0.00019973,2]
[387501411,1758745848488,-500.0,0.00019973,2]
[387501413,1758745848497,-500.0,0.00019973,2]
[387501415,1758745848506,-500.0,0.00019973,2]
[387501417,1758745848515,-648.6393408,0.00019973,2]
[387501419,1758745848526,-501.16702121,0.00019973,2]
[387501421,1758745848535,-501.84197014,0.00019973,2]
[387501423,1758745848544,-500.27819127,0.00019973,2]
[387501425,1758745848554,-501.6018424,0.00019973,2]
[387501427,1758745848563,-501.0079376,0.00019973,2]
[387501429,1758745848573,-500.0,0.00019973,2]
[387501431,1758745848583,-208.76171828,0.00019973,2]
[387501433,1758745848592,-174.83195121,0.00019973,2]
[387501435,1758745848601,-500.0,0.00019973,2]
[387501437,1758745848611,-500.0,0.00019973,2]
[387501439,1758745848624,-480.0,0.0002,2]
[387501441,1758745848638,-480.0,0.0002,2]
[387501443,1758745848648,-337.22,0.0002,2]
[387501445,1758745848658,-480.0,0.0002,2]
[387501447,1758745848668,-211.41,0.0002,2]
[387501449,1758745848678,-480.0,0.0002,2]
[387501451,1758745848688,-231.61,0.0002,2]
[387501453,1758745848698,-395.01,0.0002,2]
[387501455,1758745848707,-743.35,0.0002,2]
[387501457,1758745848717,-480.0,0.0002,2]
[387501459,1758745848727,-480.0,0.0002,2]
[387501461,1758745848737,-480.0,0.0002,2]
[387501463,1758745848746,-398.64,0.0002,2]
[387501465,1758745848755,-480.0,0.0002,2]
[387501467,1758745848765,-480.0,0.0002,2]
[387501469,1758745848775,-355.21500347,0.0002,2]
[387501471,1758745848784,-492.22768065,0.0002,2]
[387501473,1758745848794,-480.0,0.0002,2]
[387501475,1758745848804,-332.21166468,0.0002,2]
[387501477,1758745848813,-523.21,0.0002,2]
[387501479,1758745848824,-480.0,0.0002,2]
[387501481,1758745848835,-480.0,0.0002,2]
[387501483,1758745848845,-480.0,0.0002,2]
[387501485,1758745848855,-297.29849537,0.0002,2]
[387501487,1758745848864,-480.0,0.0002,2]
[387501489,1758745848874,-480.0,0.0002,2]
[387501491,1758745848883,-593.66,0.0002,2]
[387501493,1758745848893,-480.0,0.0002,2]
[387501495,1758745848902,-169.4,0.0002,2]
[387501497,1758745848912,-587.28273585,0.0002,2]
[387501499,1758745848922,-480.0,0.0002,2]
[387501501,1758745848931,-368.13,0.0002,2]
[387501503,1758745848941,-520.43,0.0002,2]
[387501505,1758745848950,-460.11,0.0002,2]
[387501507,1758745848960,-480.0,0.0002,2]
[387501509,1758745848969,-480.0,0.0002,2]
[387501511,1758745848979,-472.17,0.0002,2]
[387501513,1758745848990,-480.0,0.0002,2]
[387501515,1758745848999,-480.0,0.0002,2]
[387501517,1758745849010,-480.0,0.0002,2]
[387501519,1758745849019,-542.56,0.0002,2]
[387501521,1758745849029,-774.41,0.0002,2]
[387501523,1758745849039,-480.0,0.0002,2]
[387501525,1758745849047,-557.49,0.0002,2]
[387501527,1758745849056,-323.92769391,0.0002,2]
[387501529,1758745849067,-480.0,0.0002,2]
[387501531,1758745849077,-480.0,0.0002,2]
[387501533,1758745849087,-1028.64,0.0002,2]
[387501535,1758745849097,-480.0,0.0002,2]
[387501537,1758745849106,-480.0,0.0002,2]
[387501539,1758745849116,-480.0,0.0002,2]
[387501541,1758745849127,-480.0,0.0002,2]
[387501543,1758745849136,-692.67,0.0002,2]
[387501545,1758745849146,-480.0,0.0002,2]
[387501547,1758745849156,-610.19,0.0002,2]
[387501549,1758745849165,-480.0,0.0002,2]
[387501551,1758745849174,-395.02,0.0002,2]
[387501553,1758745849184,-480.0,0.0002,2]
[387501555,1758745849193,-480.0,0.0002,2]
[387501557,1758745849203,-484.8,0.0002,2]
[387501559,1758745849213,-480.0,0.0002,2]
[387501561,1758745849223,-480.0,0.0002,2]
[387501563,1758745849234,-480.0,0.0002,2]
[387501565,1758745849243,-774.76,0.0002,2]
[387501567,1758745849253,-543.17,0.0002,2]
[387501569,1758745849262,-535.3,0.0002,2]
[387501571,1758745849272,-480.0,0.0002,2]
[387501573,1758745849281,-343.11865664,0.0002,2]
[387501575,1758745849291,-480.0,0.0002,2]
[387501577,1758745849300,-692.37,0.0002,2]
[387501579,1758745849310,-861.47,0.0002,2]
[387501581,1758745849320,-562.63,0.0002,2]
[387501583,1758745849331,-480.0,0.0002,2]
[387501585,1758745849341,-480.0,0.0002,2]
[387501587,1758745849351,-480.0,0.0002,2]
[387501589,1758745849360,-480.0,0.0002,2]
[387501591,1758745849369,-480.0,0.0002,2]
[387501593,1758745849378,-480.0,0.0002,2]
[387501595,1758745849388,-480.0,0.0002,2]
[387501597,1758745849397,-480.0,0.0002,2]
[387501599,1758745849407,-480.0,0.0002,2]
[387501601,1758745849416,-2070.13,0.0002,2]
[387501603,1758745849426,-480.0,0.0002,2]
[387501605,1758745849435,-480.0,0.0002,2]
[387501607,1758745849445,-480.0,0.0002,2]
[387501609,1758745849455,-688.05,0.0002,2]
[387501611,1758745849464,-480.0,0.0002,2]
[387501613,1758745849473,-626.69,0.0002,2]
[387501615,1758745849483,-480.0,0.0002,2]
[387501617,1758745849493,-480.0,0.0002,2]
[387501619,1758745849502,-900.62,0.0002,2]
[387501621,1758745849512,-480.0,0.0002,2]
[387501623,1758745849522,-480.0,0.0002,2]
[387501625,1758745849531,-480.0,0.0002,2]
[387501627,1758745849541,-692.17,0.0002,2]
[387501629,1758745849551,-480.0,0.0002,2]
[387501632,1758745849560,-480.0,0.0002,2]
[387501634,1758745849569,-480.0,0.0002,2]
[387501636,1758745849579,-480.0,0.0002,2]
[387501637,1758745849588,-249.0,0.0002,2]
[387501639,1758745849597,-480.0,0.0002,2]
[387501641,1758745849606,-583.87,0.0002,2]
[387501644,1758745849616,-480.0,0.0002,2]
[387501645,1758745849628,-480.0,0.0002,2]
[387501647,1758745849639,-480.0,0.0002,2]
[387501649,1758745849648,-1043.37,0.0002,2]
[387501652,1758745849657,-401.15242291,0.0002,2]
[387501653,1758745849666,-1157.98,0.0002,2]
[387501656,1758745849676,-480.0,0.0002,2]
[387501658,1758745849685,-391.17,0.0002,2]
[387501660,1758745849695,-1000.0,0.00020021,2]
[387501662,1758745849704,-1000.0,0.00020021,2]
[387501664,1758745849714,-1000.0,0.00020021,2]
[387501666,1758745849723,-1000.0,0.00020021,2]
[387501668,1758745849732,-1002.00681975,0.00020021,2]
[387501670,1758745849741,-175.21714761,0.00020173,2]
[387501672,1758745849750,-6254.56624725,0.00020228,2]
[387501674,1758745849760,-500.0,0.00020273,2]
[387501676,1758745849769,-500.0,0.00020273,2]
[387501678,1758745849779,-500.0,0.00020273,2]
[387501680,1758745849788,-500.0,0.00020273,2]
[387501682,1758745849798,-290.77588044,0.00020273,2]
[387501684,1758745849807,-500.83686526,0.00020273,2]
[387501686,1758745849816,-500.0,0.00020273,2]
[387501688,1758745849827,-500.0,0.00020273,2]
[387501690,1758745849836,-500.0,0.00020273,2]
[387501692,1758745849846,-500.0,0.00020273,2]
[387501694,1758745849855,-509.3672855,0.00020273,2]
[387501696,1758745849865,-500.0,0.00020273,2]
[387501706,1758745849948,-500.0,0.00020273,2]
[387501708,1758745849958,-500.0,0.00020273,2]
[387501710,1758745849967,-501.41992364,0.00020273,2]
[387501712,1758745849975,-501.01443949,0.00020273,2]
[387501714,1758745849985,-500.0,0.00020273,2]
[387501716,1758745849994,-501.27066792,0.00020273,2]
[387501718,1758745850003,-480.0,0.00020273,2]
[387501720,1758745850013,-534.9,0.00020273,2]
[387501722,1758745850023,-480.0,0.00020273,2]
[387501724,1758745850033,-480.0,0.00020273,2]
[387501726,1758745850042,-743.35,0.00020273,2]
[387501728,1758745850051,-480.0,0.00020273,2]
[387501730,1758745850061,-480.0,0.00020273,2]
[387501732,1758745850070,-480.0,0.00020273,2]
[387501734,1758745850079,-480.0,0.00020273,2]
[387501736,1758745850089,-480.0,0.00020273,2]
[387501738,1758745850098,-619.39,0.00020273,2]
[387501740,1758745850108,-480.0,0.00020273,2]
[387501742,1758745850117,-480.0,0.00020273,2]
[387501744,1758745850126,-573.78,0.00020273,2]
[387501746,1758745850136,-480.0,0.00020273,2]
[387501748,1758745850146,-593.66,0.00020273,2]
[387501750,1758745850155,-480.0,0.00020273,2]
[387501752,1758745850164,-480.0,0.00020273,2]
[387501754,1758745850173,-480.0,0.00020273,2]
[387501756,1758745850183,-480.0,0.00020273,2]
[387501759,1758745850192,-480.0,0.00020273,2]
[387501761,1758745850201,-480.0,0.00020273,2]
[387501763,1758745850211,-480.0,0.00020273,2]
[387501765,1758745850220,-774.41,0.00020273,2]
[387501767,1758745850230,-480.0,0.00020273,2]
[387501769,1758745850239,-480.0,0.00020273,2]
[387501770,1758745850248,-480.0,0.00020273,2]
[387501773,1758745850258,-1028.64,0.00020273,2]
[387501775,1758745850267,-480.0,0.00020273,2]
[387501777,1758745850276,-480.0,0.00020273,2]
[387501779,1758745850285,-306.44823262,0.00020273,2]
[387501781,1758745850295,-361.38059931,0.00020273,2]
[387501783,1758745850304,-692.67,0.00020273,2]
[387501785,1758745850313,-610.19,0.00020273,2]
[387501787,1758745850322,-480.0,0.00020273,2]
[387501789,1758745850331,-160.71,0.00020273,2]
[387501791,1758745850340,-480.0,0.00020273,2]
[387501793,1758745850349,-319.38,0.00020273,2]
[387501795,1758745850358,-480.0,0.00020273,2]
[387501797,1758745850367,-480.0,0.00020273,2]
[387501799,1758745850376,-774.76,0.00020273,2]
[387501801,1758745850385,-543.17,0.00020273,2]
[387501803,1758745850394,-480.0,0.00020273,2]
[387501805,1758745850403,-480.0,0.00020273,2]
[387501807,1758745850413,-692.37,0.00020273,2]
[387501809,1758745850422,-861.47,0.00020273,2]
[387501811,1758745850431,-562.63,0.00020273,2]
[387501813,1758745850441,-480.0,0.00020273,2]
[387501815,1758745850451,-615.88,0.00020273,2]
[387501817,1758745850461,-480.0,0.00020273,2]
[387501819,1758745850470,-480.0,0.00020273,2]
[387501821,1758745850479,-480.0,0.00020273,2]
[387501823,1758745850489,-480.0,0.00020273,2]
[387501825,1758745850498,-480.0,0.00020273,2]
[387501827,1758745850507,-480.0,0.00020273,2]
[387501829,1758745850516,-480.0,0.00020273,2]
[387501831,1758745850526,-2070.13,0.00020273,2]
[387501833,1758745850535,-480.0,0.00020273,2]
[387501835,1758745850545,-480.0,0.00020273,2]
[387501837,1758745850554,-688.05,0.00020273,2]
[387501839,1758745850563,-480.0,0.00020273,2]
[387501841,1758745850572,-626.69,0.00020273,2]
[387501843,1758745850581,-480.0,0.00020273,2]
[387501845,1758745850591,-480.0,0.00020273,2]
[387501847,1758745850600,-900.62,0.00020273,2]
[387501849,1758745850609,-480.0,0.00020273,2]
[387501851,1758745850619,-282.32,0.00020273,2]
[387501853,1758745850634,-480.0,0.00020273,2]
[387501855,1758745850643,-692.17,0.00020273,2]
[387501857,1758745850654,-480.0,0.00020273,2]
[387501859,1758745850663,-480.0,0.00020273,2]
[387501861,1758745850673,-480.0,0.00020273,2]
[387501863,1758745850682,-480.0,0.00020273,2]
[387501865,1758745850691,-480.0,0.00020273,2]
[387501867,1758745850702,-583.87,0.00020273,2]
[387501869,1758745850711,-480.0,0.00020273,2]
[387501871,1758745850721,-480.0,0.00020273,2]
[387501873,1758745850730,-628.9948553,0.00020273,2]
[387501875,1758745850740,-1043.37,0.00020273,2]
[387501877,1758745850749,-1157.98,0.00020273,2]
[387501879,1758745850759,-480.0,0.00020273,2]
[387501881,1758745850768,-160.0,0.00020431,2]
[387501883,1758745850778,-1500.0,0.00020468,2]
[387501885,1758745850787,-1500.0,0.00020468,2]
[387501887,1758745850797,-1000.0,0.00020521,2]
[387501889,1758745850806,-480.0,0.00020547,2]
[387501891,1758745850816,-480.0,0.00020547,2]
[387501893,1758745850826,-480.0,0.00020547,2]
[387501895,1758745850835,-743.35,0.00020547,2]
[387501898,1758745850845,-480.0,0.00020547,2]
[387501900,1758745850854,-211.83721234,0.00020547,2]
[387501902,1758745850863,-480.0,0.00020547,2]
[387501904,1758745850873,-480.0,0.00020547,2]
[387501906,1758745850882,-480.0,0.00020547,2]
[387501907,1758745850891,-480.0,0.00020547,2]
[387501910,1758745850900,-480.0,0.00020547,2]
[387501912,1758745850909,-480.0,0.00020547,2]
[387501914,1758745850919,-593.66,0.00020547,2]
[387501915,1758745850928,-480.0,0.00020547,2]
[387501918,1758745850937,-480.0,0.00020547,2]
[387501920,1758745850946,-480.0,0.00020547,2]
[387501922,1758745850956,-480.0,0.00020547,2]
[387501924,1758745850966,-480.0,0.00020547,2]
[387501926,1758745850976,-480.0,0.00020547,2]
[387501928,1758745850986,-480.0,0.00020547,2]
[387501930,1758745850997,-774.41,0.00020547,2]
[387501932,1758745851006,-480.0,0.00020547,2]
[387501934,1758745851014,-480.0,0.00020547,2]
[387501936,1758745851024,-338.4989212,0.00020547,2]
[387501938,1758745851033,-1028.64,0.00020547,2]
[387501940,1758745851042,-480.0,0.00020547,2]
[387501942,1758745851051,-692.67,0.00020547,2]
[387501944,1758745851061,-610.19,0.00020547,2]
[387501946,1758745851070,-480.0,0.00020547,2]
[387501948,1758745851079,-480.0,0.00020547,2]
[387501950,1758745851089,-480.0,0.00020547,2]
[387501952,1758745851098,-480.0,0.00020547,2]
[387501954,1758745851107,-543.17,0.00020547,2]
[387501956,1758745851117,-774.76,0.00020547,2]
[387501958,1758745851126,-480.0,0.00020547,2]
[387501960,1758745851135,-515.33,0.00020547,2]
[387501962,1758745851144,-692.37,0.00020547,2]
[387501964,1758745851153,-562.63,0.00020547,2]
[387501966,1758745851163,-861.47,0.00020547,2]
[387501968,1758745851172,-480.0,0.00020547,2]
[387501970,1758745851182,-480.0,0.00020547,2]
[387501972,1758745851192,-480.0,0.00020547,2]
[387501974,1758745851202,-384.66735293,0.00020547,2]
[387501976,1758745851211,-480.0,0.00020547,2]
[387501978,1758745851220,-480.0,0.00020547,2]
[387501980,1758745851230,-480.0,0.00020547,2]
[387501982,1758745851239,-2070.13,0.00020547,2]
[387501983,1758745851250,-480.0,0.00020547,2]
[387501984,1758745851260,-480.0,0.00020547,2]
[387501985,1758745851270,-688.05,0.00020547,2]
[387501986,1758745851280,-480.0,0.00020547,2]
[387501987,1758745851290,-626.69,0.00020547,2]
[387501988,1758745851299,-480.0,0.00020547,2]
[387501989,1758745851310,-480.0,0.00020547,2]
[387501990,1758745851319,-480.0,0.00020547,2]
[387501991,1758745851328,-900.62,0.00020547,2]
[387501992,1758745851337,-480.0,0.00020547,2]
[387501993,1758745851346,-692.17,0.00020547,2]
[387501994,1758745851356,-262.63,0.00020547,2]
[387501995,1758745851365,-480.0,0.00020547,2]
[387501996,1758745851374,-480.0,0.00020547,2]
[387501997,1758745851383,-480.0,0.00020547,2]
[387501998,1758745851392,-583.87,0.00020547,2]
[387501999,1758745851402,-480.0,0.00020547,2]
[387502000,1758745851411,-480.0,0.00020547,2]
[387502001,1758745851420,-1043.37,0.00020547,2]
[387502002,1758745851430,-1157.98,0.00020547,2]
[387502003,1758745851439,-480.0,0.00020547,2]
[387502004,1758745851449,-500.0,0.00020568,2]
[387502006,1758745851458,-1500.0,0.00020568,2]
[387502008,1758745851467,-500.0,0.00020568,2]
[387502010,1758745851476,-1087.93153727,0.00020568,2]
[387502012,1758745851486,-196.34,0.0002057,2]
[387502014,1758745851495,-300.48832882,0.00020704,2]
[387502016,1758745851504,-476.05367128,0.00020775,2]
[387502018,1758745851514,-6254.56624725,0.00020802,2]
[387502020,1758745851523,-500.0,0.00020821,2]
[387502022,1758745851534,-1000.0,0.00020821,2]
[387502024,1758745851543,-480.0,0.00020821,2]
[387502026,1758745851553,-480.0,0.00020821,2]
[387502028,1758745851563,-583.31874099,0.00020821,2]
[387502030,1758745851572,-743.35,0.00020821,2]
[387502032,1758745851581,-480.0,0.00020821,2]
[387502034,1758745851590,-480.0,0.00020821,2]
[387502036,1758745851600,-375.88194647,0.00020821,2]
[387502038,1758745851610,-480.0,0.00020821,2]
[387502040,1758745851619,-374.338158,0.00020821,2]
[387502042,1758745851633,-332.52221142,0.00020821,2]
[387502045,1758745851642,-593.66,0.00020821,2]
[387502054,1758745851652,-480.0,0.00020821,2]
[387502056,1758745851733,-439.96764022,0.00020821,2]
[387502058,1758745851742,-293.7,0.00020821,2]
[387502060,1758745851752,-480.0,0.00020821,2]
[387502063,1758745851762,-480.0,0.00020821,2]
[387502064,1758745851771,-480.0,0.00020821,2]
[387502067,1758745851782,-480.0,0.00020821,2]
[387502069,1758745851791,-774.41,0.00020821,2]
[387502071,1758745851800,-354.94,0.00020821,2]
[387502073,1758745851809,-480.0,0.00020821,2]
[387502075,1758745851818,-1028.64,0.00020821,2]
[387502077,1758745851827,-480.0,0.00020821,2]
[387502079,1758745851836,-692.67,0.00020821,2]
[387502081,1758745851845,-610.19,0.00020821,2]
[387502082,1758745851854,-480.0,0.00020821,2]
[387502085,1758745851864,-480.0,0.00020821,2]
[387502086,1758745851873,-480.0,0.00020821,2]
[387502089,1758745851882,-480.0,0.00020821,2]
[387502091,1758745851892,-774.76,0.00020821,2]
[387502093,1758745851901,-543.17,0.00020821,2]
[387502095,1758745851910,-480.0,0.00020821,2]
[387502097,1758745851920,-692.37,0.00020821,2]
[387502099,1758745851929,-562.63,0.00020821,2]
[387502101,1758745851938,-861.47,0.00020821,2]
[387502103,1758745851947,-480.0,0.00020821,2]
[387502105,1758745851956,-480.0,0.00020821,2]
[387502107,1758745851966,-480.0,0.00020821,2]
[387502109,1758745851975,-480.0,0.00020821,2]
[387502111,1758745851984,-480.0,0.00020821,2]
[387502113,1758745851994,-480.0,0.00020821,2]
[387502115,1758745852004,-2070.13,0.00020821,2]
[387502117,1758745852013,-601.87,0.00020821,2]
[387502119,1758745852022,-480.0,0.00020821,2]
[387502121,1758745852031,-688.05,0.00020821,2]
[387502123,1758745852041,-480.0,0.00020821,2]
[387502125,1758745852050,-626.69,0.00020821,2]
[387502127,1758745852060,-480.0,0.00020821,2]
[387502129,1758745852069,-480.0,0.00020821,2]
[387502131,1758745852079,-480.0,0.00020821,2]
[387502133,1758745852088,-900.62,0.00020821,2]
[387502135,1758745852097,-480.0,0.00020821,2]
[387502137,1758745852108,-692.17,0.00020821,2]
[387502139,1758745852117,-480.0,0.00020821,2]
[387502140,1758745852126,-480.0,0.00020821,2]
[387502142,1758745852135,-480.0,0.00020821,2]
[387502144,1758745852145,-583.87,0.00020821,2]
[387502145,1758745852154,-480.0,0.00020821,2]
[387502146,1758745852164,-480.0,0.00020821,2]
[387502147,1758745852173,-1043.37,0.00020821,2]
[387502148,1758745852182,-1157.98,0.00020821,2]
[387502149,1758745852191,-480.0,0.00020821,2]
[387502150,1758745852201,-420.0,0.00020898,2]
[387502151,1758745852210,-151.0,0.000209,3]
[387502152,1758745852220,-151.0,0.000209,4]
[387502153,1758745852229,-168.58402945,0.00020967,2]
[387502154,1758745852238,-2542.27029692,0.00020972,2]
[387502155,1758745852247,-260.0,0.00020979,2]
[387502156,1758745852256,-269.33264838,0.00021,2]
[387502157,1758745852265,-1500.0,0.00021068,2]
[387502159,1758745852275,-155.0,0.00021095,2]
[387502161,1758745852284,-480.0,0.00021095,2]
[387502163,1758745852294,-480.0,0.00021095,2]
[387502165,1758745852303,-743.35,0.00021095,2]
[387502167,1758745852313,-480.0,0.00021095,2]
[387502169,1758745852322,-480.0,0.00021095,2]
[387502171,1758745852331,-198.98,0.00021095,2]
[387502173,1758745852341,-593.66,0.00021095,2]
[387502175,1758745852350,-206.59456628,0.00021095,2]
[387502177,1758745852360,-480.0,0.00021095,2]
[387502179,1758745852370,-480.0,0.00021095,2]
[387502181,1758745852380,-480.0,0.00021095,2]
[387502183,1758745852390,-480.0,0.00021095,2]
[387502185,1758745852399,-774.41,0.00021095,2]
[387502187,1758745852409,-480.0,0.00021095,2]
[387502189,1758745852418,-1028.64,0.00021095,2]
[387502191,1758745852427,-480.0,0.00021095,2]
[387502193,1758745852437,-692.67,0.00021095,2]
[387502195,1758745852446,-610.19,0.00021095,2]
[387502197,1758745852455,-480.0,0.00021095,2]
[387502199,1758745852465,-480.0,0.00021095,2]
[387502201,1758745852475,-480.0,0.00021095,2]
[387502203,1758745852484,-480.0,0.00021095,2]
[387502205,1758745852493,-774.76,0.00021095,2]
[387502207,1758745852503,-543.17,0.00021095,2]
[387502209,1758745852512,-480.0,0.00021095,2]
[387502211,1758745852521,-692.37,0.00021095,2]
[387502213,1758745852531,-562.63,0.00021095,2]
[387502215,1758745852540,-861.47,0.00021095,2]
[387502217,1758745852550,-480.0,0.00021095,2]
[387502219,1758745852559,-480.0,0.00021095,2]
[387502221,1758745852569,-480.0,0.00021095,2]
[387502223,1758745852580,-581.71671491,0.00021095,2]
[387502226,1758745852589,-480.0,0.00021095,2]
[387502227,1758745852599,-480.0,0.00021095,2]
[387502229,1758745852608,-2070.13,0.00021095,2]
[387502231,1758745852618,-285.34702971,0.00021095,2]
[387502234,1758745852632,-688.05,0.00021095,2]
[387502235,1758745852641,-480.0,0.00021095,2]
[387502237,1758745852651,-626.69,0.00021095,2]
[387502240,1758745852660,-480.0,0.00021095,2]
[387502241,1758745852669,-480.0,0.00021095,2]
[387502243,1758745852679,-480.0,0.00021095,2]
[387502245,1758745852690,-900.62,0.00021095,2]
[387502247,1758745852699,-480.0,0.00021095,2]
[387502249,1758745852708,-692.17,0.00021095,2]
[387502251,1758745852718,-480.0,0.00021095,2]
[387502253,1758745852727,-480.0,0.00021095,2]
[387502255,1758745852737,-480.0,0.00021095,2]
[387502257,1758745852746,-583.87,0.00021095,2]
[387502259,1758745852756,-480.0,0.00021095,2]
[387502261,1758745852765,-480.0,0.00021095,2]
[387502263,1758745852774,-1043.37,0.00021095,2]
[387502265,1758745852783,-1157.98,0.00021095,2]
[387502267,1758745852793,-480.0,0.00021095,2]
[387502269,1758745852802,-500.0,0.00021136,2]
[387502272,1758745852811,-480.0,0.00021369,2]
[387502273,1758745852820,-275.47,0.00021369,2]
[387502275,1758745852830,-743.35,0.00021369,2]
[387502277,1758745852839,-179.8,0.00021369,2]
[387502279,1758745852848,-480.0,0.00021369,2]
[387502281,1758745852858,-593.66,0.00021369,2]
[387502283,1758745852867,-480.0,0.00021369,2]
[387502285,1758745852876,-480.0,0.00021369,2]
[387502287,1758745852886,-480.0,0.00021369,2]
[387502289,1758745852895,-480.0,0.00021369,2]
[387502291,1758745852904,-774.41,0.00021369,2]
[387502293,1758745852914,-480.0,0.00021369,2]
[387502295,1758745852923,-1028.64,0.00021369,2]
[387502297,1758745852932,-692.67,0.00021369,2]
[387502299,1758745852941,-610.19,0.00021369,2]
[387502301,1758745852951,-480.0,0.00021369,2]
[387502303,1758745852961,-480.0,0.00021369,2]
[387502305,1758745852971,-480.0,0.00021369,2]
[387502308,1758745852981,-480.0,0.00021369,2]
[387502309,1758745852990,-774.76,0.00021369,2]
[387502312,1758745852999,-543.17,0.00021369,2]
[387502314,1758745853009,-480.0,0.00021369,2]
[387502316,1758745853018,-692.37,0.00021369,2]
[387502318,1758745853027,-562.63,0.00021369,2]
[387502320,1758745853036,-861.47,0.00021369,2]
[387502322,1758745853045,-480.0,0.00021369,2]
[387502324,1758745853055,-480.0,0.00021369,2]
[387502326,1758745853064,-480.0,0.00021369,2]